{"text_format":"3","workbook":"xlsx","n_sheets":1,"sheets":["Voorstel"],"not_rendered":{"defined_names":20},"read":"whole","date_system":"1900"}

{"sheet":"Voorstel","index":0,"n_rows":41,"n_cols":8,"rows_kept":41,"merged":[[1,1,3,1],[1,4,1,7],[2,4,2,7],[3,5,3,7],[33,4,33,5],[34,4,36,5],[37,4,37,5],[38,4,38,5],[39,4,39,5],[40,4,40,5]]}
[]
[null,"HIER UW LOGO",null,null,"BOUWVOORSTEL"]
[{"$nulls":4},"The Refurbished Home | 89 Pacific Ave, San Francisco, CA 78901"]
[{"$nulls":4},"P (123) 456-7890","F (123) 456-7891"]
[]
[null,"KLANT",null,null,"HOEVEELHEID","BESCHRIJVING","PRIJS PER EENHEID","BEDRAG"]
[null,"Maria Sullivan",null,null,10,"Gipsplaat",{"v":165,"d":"€ 165.00"},{"$f":"IFERROR(Regelitems[[#This Row],[HOEVEELHEID]]*Regelitems[[#This Row],[PRIJS PER EENHEID]], \"\")","v":{"v":1650,"d":"€ 1,650.00"}}]
[null,"SCHATTINGNR.",null,null,21,"Multiplex",{"v":40,"d":"€ 40.00"},{"$f":"IFERROR(Regelitems[[#This Row],[HOEVEELHEID]]*Regelitems[[#This Row],[PRIJS PER EENHEID]], \"\")","v":{"v":840,"d":"€ 840.00"}}]
[null,"C-1234",null,null,5,"Houten verbindingen",{"v":10.5,"d":"€ 10.50"},{"$f":"IFERROR(Regelitems[[#This Row],[HOEVEELHEID]]*Regelitems[[#This Row],[PRIJS PER EENHEID]], \"\")","v":{"v":52.5,"d":"€ 52.50"}}]
[null,"DATUM",null,null,164,"Lange schroeven",{"v":2.75,"d":"€ 2.75"},{"$f":"IFERROR(Regelitems[[#This Row],[HOEVEELHEID]]*Regelitems[[#This Row],[PRIJS PER EENHEID]], \"\")","v":{"v":451,"d":"€ 451.00"}}]
[null,{"$f":"TODAY()","v":"2023-03-22"},null,null,6,"Douchekop",{"v":12,"d":"€ 12.00"},{"$f":"IFERROR(Regelitems[[#This Row],[HOEVEELHEID]]*Regelitems[[#This Row],[PRIJS PER EENHEID]], \"\")","v":{"v":72,"d":"€ 72.00"}}]
[null,"ADRES",null,null,18,"Douchetegel",{"v":5.5,"d":"€ 5.50"},{"$f":"IFERROR(Regelitems[[#This Row],[HOEVEELHEID]]*Regelitems[[#This Row],[PRIJS PER EENHEID]], \"\")","v":{"v":99,"d":"€ 99.00"}}]
[null,"123 Avenue A",null,null,1,"Spiegel boven wasbak",{"v":25,"d":"€ 25.00"},{"$f":"IFERROR(Regelitems[[#This Row],[HOEVEELHEID]]*Regelitems[[#This Row],[PRIJS PER EENHEID]], \"\")","v":{"v":25,"d":"€ 25.00"}}]
[null,"Postcode en plaats",{"$nulls":5},{"$f":"IFERROR(Regelitems[[#This Row],[HOEVEELHEID]]*Regelitems[[#This Row],[PRIJS PER EENHEID]], \"\")","v":{"v":0,"d":"€ 0.00"}}]
[null,"Burbank, CA 54321",{"$nulls":5},{"$f":"IFERROR(Regelitems[[#This Row],[HOEVEELHEID]]*Regelitems[[#This Row],[PRIJS PER EENHEID]], \"\")","v":{"v":0,"d":"€ 0.00"}}]
[null,"TELEFOON",{"$nulls":5},{"$f":"IFERROR(Regelitems[[#This Row],[HOEVEELHEID]]*Regelitems[[#This Row],[PRIJS PER EENHEID]], \"\")","v":{"v":0,"d":"€ 0.00"}}]
[null,"(502) 555-0123",{"$nulls":5},{"$f":"IFERROR(Regelitems[[#This Row],[HOEVEELHEID]]*Regelitems[[#This Row],[PRIJS PER EENHEID]], \"\")","v":{"v":0,"d":"€ 0.00"}}]
[null,"E-MAIL",{"$nulls":5},{"$f":"IFERROR(Regelitems[[#This Row],[HOEVEELHEID]]*Regelitems[[#This Row],[PRIJS PER EENHEID]], \"\")","v":{"v":0,"d":"€ 0.00"}}]
[null,"maria@contoso.com",{"$nulls":5},{"$f":"IFERROR(Regelitems[[#This Row],[HOEVEELHEID]]*Regelitems[[#This Row],[PRIJS PER EENHEID]], \"\")","v":{"v":0,"d":"€ 0.00"}}]
[{"$nulls":7},{"$f":"IFERROR(Regelitems[[#This Row],[HOEVEELHEID]]*Regelitems[[#This Row],[PRIJS PER EENHEID]], \"\")","v":{"v":0,"d":"€ 0.00"}}]
[{"$nulls":7},{"$f":"IFERROR(Regelitems[[#This Row],[HOEVEELHEID]]*Regelitems[[#This Row],[PRIJS PER EENHEID]], \"\")","v":{"v":0,"d":"€ 0.00"}}]
[null,"VERKOPER",{"$nulls":5},{"$f":"IFERROR(Regelitems[[#This Row],[HOEVEELHEID]]*Regelitems[[#This Row],[PRIJS PER EENHEID]], \"\")","v":{"v":0,"d":"€ 0.00"}}]
[null,"Josko Lucic",{"$nulls":5},{"$f":"IFERROR(Regelitems[[#This Row],[HOEVEELHEID]]*Regelitems[[#This Row],[PRIJS PER EENHEID]], \"\")","v":{"v":0,"d":"€ 0.00"}}]
[null,"PROJECT",{"$nulls":5},{"$f":"IFERROR(Regelitems[[#This Row],[HOEVEELHEID]]*Regelitems[[#This Row],[PRIJS PER EENHEID]], \"\")","v":{"v":0,"d":"€ 0.00"}}]
[null,"Herinrichting badkamer",{"$nulls":5},{"$f":"IFERROR(Regelitems[[#This Row],[HOEVEELHEID]]*Regelitems[[#This Row],[PRIJS PER EENHEID]], \"\")","v":{"v":0,"d":"€ 0.00"}}]
[null,"VOORBEREID DOOR:",{"$nulls":5},{"$f":"IFERROR(Regelitems[[#This Row],[HOEVEELHEID]]*Regelitems[[#This Row],[PRIJS PER EENHEID]], \"\")","v":{"v":0,"d":"€ 0.00"}}]
[null,"Josko Lucic",{"$nulls":5},{"$f":"IFERROR(Regelitems[[#This Row],[HOEVEELHEID]]*Regelitems[[#This Row],[PRIJS PER EENHEID]], \"\")","v":{"v":0,"d":"€ 0.00"}}]
[{"$nulls":7},{"$f":"IFERROR(Regelitems[[#This Row],[HOEVEELHEID]]*Regelitems[[#This Row],[PRIJS PER EENHEID]], \"\")","v":{"v":0,"d":"€ 0.00"}}]
[{"$nulls":7},{"$f":"IFERROR(Regelitems[[#This Row],[HOEVEELHEID]]*Regelitems[[#This Row],[PRIJS PER EENHEID]], \"\")","v":{"v":0,"d":"€ 0.00"}}]
[null,"TAV",{"$nulls":5},{"$f":"IFERROR(Regelitems[[#This Row],[HOEVEELHEID]]*Regelitems[[#This Row],[PRIJS PER EENHEID]], \"\")","v":{"v":0,"d":"€ 0.00"}}]
[null,"Maria Sullivan",{"$nulls":5},{"$f":"IFERROR(Regelitems[[#This Row],[HOEVEELHEID]]*Regelitems[[#This Row],[PRIJS PER EENHEID]], \"\")","v":{"v":0,"d":"€ 0.00"}}]
[null,"BETALINGSVOORWAARDEN",{"$nulls":5},{"$f":"IFERROR(Regelitems[[#This Row],[HOEVEELHEID]]*Regelitems[[#This Row],[PRIJS PER EENHEID]], \"\")","v":{"v":0,"d":"€ 0.00"}}]
[null,"Netto 30",{"$nulls":4},"SUBTOTAAL",{"$f":"SUBTOTAL(109,Regelitems[BEDRAG])","v":{"v":3189.5,"d":"€ 3,189.50"}}]
[null,"VERVALDATUM",null,null,"DIT VOORSTEL IS ONDERHEVIG AAN DE VOLGENDE VOORWAARDEN:",null,"BELASTINGTARIEF ",{"v":0.0775,"d":"7.75%"}]
[null,{"$f":"TODAY()+30","v":"2023-04-21"},null,null,"Voer hier de voorwaarden in",null,"BTW ",{"$f":"IFERROR(Subtotaal*Belastingtarief, \"\")","v":{"v":247.18625,"d":"€ 247.19"}}]
[{"$nulls":6},"OVERIG "]
[{"$nulls":6},"TOTAAL ",{"$f":"IFERROR(Subtotaal+H35+Overige, \"\")","v":{"v":3436.68625,"d":"€ 3,436.69"}}]
[]
[{"$nulls":4},"ONDERTEKEN HIERONDER OM OFFERTE TE ACCEPTEREN:"]
[]
[{"$nulls":4},"GEMACHTIGDE VERTEGENWOORDIGER",null,null,"DATUM"]